[Event "Menorca Open-A 2022"]
[Site "Menorca"]
[Date "2022.04.21"]
[Round "2.10"]
[White "Santos Ruiz, Miguel"]
[Black "Chumpitaz, Ann"]
[Result "1-0"]
[ECO "B48"]
[WhiteElo "2596"]
[BlackElo "2244"]
[Annotator "TA"]
[PlyCount "83"]
[EventDate "2022.04.20"]
[EventType "swiss"]
[EventCountry "ESP"]
[SourceTitle "playchess.com"]
[Source "ChessBase"]
[SourceQuality "1"]
[TimeControl "5400+30"]

{[%evp 11,83,29,32,15,43,38,51,25,32,42,31,3,35,15,76,49,90,12,14,19,24,8,25,12,47,44,82,68,71,79,129,102,106,100,189,197,229,228,401,398,382,248,331,319,306,246,338,339,472,468,452,459,529,513,572,546,441,435,1157,787,837,719,1650,528,517,510,749,743,733,721,918,902,845,579]} 1. e4 {[%emt 0:00:03]} c5 {[%emt 0:01:18]} 2. Nf3 {[%emt 0:00:06]} e6 {[%emt 0:00:06]} 3. d4 {[%emt 0:00:03]} cxd4 {[%emt 0:00:03]} 4. Nxd4 {[%emt 0:00:07]} Nc6 {[%emt 0:00:03][%cal Bb8c6,Bc6e5,Be5g4][%mdl 32]} 5. Nc3 {[%emt 0:00:04]} Qc7 {[%emt 0:00:03]} 6. Be3 {[%emt 0:00:14]} a6 {[%emt 0:00:28]} 7. Qf3 {[%emt 0:03:53] Recently 7.g4 got a lot of attention. B48: Sicilian: Taimanov: 5 Nc3 Qc7 6 Be3 a6 without Be2.} Ne5 {[%emt 0:01:26]} 8. Qg3 {[%emt 0:00:22]} h5 {[%emt 0:00:05]} 9. f4 {[%emt 0:03:40] White is slightly better.} (9. Bf4 $5 {[%cal Rf4e5]} d6 10. Nf3 $14) 9... Ng4 {[%emt 0:00:16]} 10. Bd2 {[%emt 0:01:07]} b5 {[%emt 0:02:08] [#]} 11. a3 $146 {[%emt 0:07:17]} ({Predecessor:} 11. h3 N4f6 12. a3 Bb7 13. Bd3 h4 14. Qf2 Bc5 15. Be3 Rc8 16. e5 Nd5 17. Nxd5 Bxd5 {1-0 (34) Bacrot,E (2699)-Maze,S (2612) Nimes 2018}) 11... Bb7 {[%emt 0:11:05]} (11... Bc5 $5 {[%cal Rc5d4]} 12. h3 Bxd4 13. hxg4 Nf6 $16) 12. Bd3 {[%emt 0:09:39]} Qb6 {[%emt 0:22:54] [#]} (12... Bc5 $11 {remains equal.} 13. Nce2 Kf8) 13. h3 $1 {[%emt 0:05:29]} h4 $1 {[%emt 0:05:29] [#]} 14. Qxg4 {[%emt 0:02:04]} (14. Qf3 $1 $16) 14... Qxd4 $11 {[%emt 0:00:07]} 15. Qe2 {[%emt 0:01:35]} Qb6 {[%emt 0:06:44]} 16. O-O-O {[%emt 0:07:13]} Nf6 {[%emt 0:06:08]} 17. e5 $36 {[%emt 0:05:54][%mdl 2048] Be3 is the strong threat. White has good play.} Nd5 {[%emt 0:00:07] Prevents Be3.} (17... Nh5 $5 {[%cal Rb5b4]}) 18. f5 {[%emt 0:00:10]} Rc8 {[%emt 0:03:18]} 19. Nxd5 {[%emt 0:06:18]} Bxd5 {[%emt 0:02:12]} 20. Rhf1 {[%emt 0:06:59] Black is on the road to losing.} Qb7 {[%emt 0:08:11]} ({Black should try} 20... b4 21. axb4 Bxb4) 21. Qg4 {[%emt 0:01:22]} Qc6 {[%emt 0:12:03]} 22. Bb4 {[%emt 0:07:50] &Bianco is more active.} Rc7 {[%emt 0:14:31]} (22... exf5 $16 23. Bxf5 Bxb4) 23. Bxf8 $18 {[%emt 0:04:07]} Kxf8 {[%emt 0:01:23]} 24. Qg5 {[%emt 0:01:48][%cal Rg5d8]} (24. f6 g6 $16) 24... Rc8 {[%emt 0:01:41] Prevents Qd8+.} (24... Ke8 25. Qxg7 Rf8) 25. f6 {[%emt 0:01:55]} Rg8 {[%emt 0:00:20]} 26. Qxh4 {[%emt 0:01:35]} g6 {[%emt 0:00:34]} 27. Rd2 {[%emt 0:06:09] Strongly threatening Qh6+.} ({Less strong is} 27. Qh7 d6 $16) 27... Qc5 {[%emt 0:00:36]} 28. Re1 {[%emt 0:01:04]} a5 {[%emt 0:00:17]} 29. Be4 {[%emt 0:00:35]} ({Not} 29. Qh7 b4 $18) 29... b4 {[%emt 0:00:51]} 30. Bxd5 {[%emt 0:00:21] White is clearly winning.} exd5 {[%emt 0:00:30]} 31. a4 {[%emt 0:01:31]} Qc6 {[%emt 0:00:30]} 32. b3 {[%emt 0:02:18]} Qc3 {[%emt 0:00:02][%cal Rc3a1]} 33. Qh6+ {[%emt 0:00:07]} Ke8 {[%emt 0:00:12][%cal Rc3a1]} 34. Kb1 {[%emt 0:00:07] Prevents Qa1+.} d4 {[%emt 0:00:30]} (34... Kd8 $142 35. Ree2 Qc5) 35. Ree2 {[%emt 0:00:29]} Rc6 {[%emt 0:01:16]} 36. Qf4 {[%emt 0:01:20][%cal Oe5e6] Threatening mate with e6!} Rh8 {[%emt 0:00:29]} 37. Qxd4 {[%emt 0:01:22]} (37. Rxd4 $142 Rc8 38. Red2) 37... Qxd4 {[%emt 0:00:20]} 38. Rxd4 {[%emt 0:00:04]} Rc5 {[%emt 0:00:35]} 39. Red2 {[%emt 0:00:11]} Rc7 {[%emt 0:00:37]} 40. Rd5 {[%emt 0:00:05]} Ra7 {[%emt 0:00:18]} 41. Rb5 {[%emt 0:00:03][%cal Rb5b8]} Ra8 {[%emt 0:00:15] Against Rb8+} 42. Rdd5 {[%emt 0:00:18] Weighted Error Value: White=0.31/Black=0.40} 1-0

[Event "Menorca Open-A 2022"]
[Site "Menorca"]
[Date "2022.04.21"]
[Round "3.1"]
[White "Erigaisi Arjun"]
[Black "Cuenca Jimenez, Jose Fernando"]
[Result "1-0"]
[ECO "D02"]
[WhiteElo "2633"]
[BlackElo "2552"]
[Annotator "TA"]
[PlyCount "77"]
[EventDate "2022.04.20"]
[EventType "swiss"]
[EventCountry "ESP"]
[SourceTitle "playchess.com"]
[Source "ChessBase"]
[SourceQuality "1"]
[TimeControl "5400+30"]

{[%evp 9,77,0,8,8,25,19,35,39,29,28,17,31,29,29,33,14,40,21,10,16,36,31,57,59,53,59,44,58,50,63,86,97,122,122,114,98,93,84,138,138,138,138,138,138,158,162,154,160,193,193,190,183,221,222,242,252,441,436,484,477,498,487,498,453,496,481,1800,1738,29996,274]} 1. d4 {[%emt 1:31:00]} Nf6 {[%emt 1:31:00]} 2. Nf3 {[%emt 0:00:30]} d5 {[%emt 0:00:30]} 3. Bf4 {[%emt 0:00:30]} g6 {[%emt 0:00:30]} 4. e3 {[%emt 0:00:30]} Bg7 {[%emt 0:00:30]} 5. Nbd2 {[%emt 0:00:30]} c5 {[%emt 0:00:30]} 6. c3 {[%emt 0:00:30] D02: 1 d4 d5 2 Nf3 sidelines, including 2...Nf6 3 g3 and 2...Nf6 3 Bf4.} Qb6 {[%emt 0:00:30]} 7. Qb3 {[%emt 0:00:30]} c4 {[%emt 0:00:30]} 8. Qa3 {[%emt 0:00:30] White is slightly better.} Nc6 {[%emt 0:00:30] [#]} 9. b3 $146 {[%emt 0:00:30]} ({Predecessor:} 9. Bg3 O-O 10. b3 cxb3 11. axb3 Bf5 12. Be2 Nh5 13. Bh4 Rfe8 14. O-O e5 15. Nxe5 Nxe5 16. dxe5 Bxe5 {1-0 (48) Lund,S (1315)-Bourgault,J (1850) ICCF email 2019}) 9... cxb3 {[%emt 0:00:30]} 10. axb3 {[%emt 0:00:30]} Nh5 {[%emt 0:00:30]} 11. Be5 {[%emt 0:00:30]} Bxe5 {[%emt 0:00:30]} 12. Nxe5 {[%emt 0:00:30]} Nxe5 {[%emt 0:00:30]} 13. dxe5 {[%emt 0:00:30]} Qc7 {[%emt 0:00:30]} 14. Qa4+ {[%emt 0:00:30]} Bd7 {[%emt 0:00:30]} 15. Bb5 {[%emt 0:00:30]} Bxb5 {[%emt 0:00:30]} 16. Qxb5+ {[%emt 0:00:30]} Qd7 {[%emt 0:00:30]} 17. Qxd7+ {[%emt 0:00:30]} Kxd7 {[%emt 0:00:30]} 18. Ra5 {[%emt 0:00:30]} Ke6 {[%emt 0:00:30]} 19. Nf3 {[%emt 0:00:30]} Rhc8 {[%emt 0:00:30] Black is on the road to losing.} 20. Kd2 {[%emt 0:00:30]} b6 {[%emt 0:00:30]} 21. Ra6 {[%emt 0:00:30]} f6 {[%emt 0:00:30]} 22. Nd4+ {[%emt 0:00:30]} Kxe5 {[%emt 0:00:30]} 23. Rha1 {[%emt 0:00:30]} Ng7 {[%emt 0:00:30]} (23... f5 $142) 24. Rxa7 $16 {[%emt 0:00:30] &Bianco is more active.} Rxa7 {[%emt 0:00:30]} 25. Rxa7 {[%emt 0:00:30][%mdl 4096] Endgame KRN-KRN} Kd6 {[%emt 0:00:30]} 26. Nb5+ {[%emt 0:00:30]} Ke6 {[%emt 0:00:30]} 27. Rb7 $1 {[%emt 0:00:30]} Nf5 {[%emt 0:00:30]} 28. Rxb6+ {[%emt 0:00:30]} Kf7 {[%emt 0:00:30]} 29. g4 {[%emt 0:00:30]} Nh4 {[%emt 0:00:30] [#]} 30. Rb7 $1 {[%emt 0:00:30] Nd6+ is the strong threat.} Ra8 {[%emt 0:00:30] [#]} (30... Nf3+ $2 31. Ke2 Ng1+ 32. Kf1 $18) 31. Nc7 $1 {[%emt 0:00:30][%csl LRa8,LRd5]} Ra2+ {[%emt 0:00:30]} 32. Kd3 {[%emt 0:00:30]} Rxf2 $2 {[%emt 0:00:30]} (32... Nf3 33. Nxd5 Rd2+ 34. Kc4 Ke6) 33. Nxd5 $18 {[%emt 0:00:30]} Ke6 {[%emt 0:00:30]} 34. c4 {[%emt 0:00:30][%cal Bc3c4,Bc4c5][%mdl 32]} Nf3 {[%emt 0:00:30]} 35. Rxe7+ {[%emt 0:00:30]} Kd6 {[%emt 0:00:30]} 36. Rxh7 {[%emt 0:00:30]} Ne5+ {[%emt 0:00:30]} 37. Kd4 {[%emt 0:00:30] And now c5+ would win.} Nxg4 {[%emt 0:00:30]} (37... Rd2+ $142 38. Kc3 Rd1 39. Nxf6 Rd3+ 40. Kb4 Rxe3) 38. c5+ {[%emt 0:00:30]} Kc6 {[%emt 0:00:30]} 39. Nb4+ {[%emt 0:00:30] Weighted Error Value: White=0.01 (flawless) /Black=0.47} 1-0

[Event "Menorca Open-A 2022"]
[Site "Menorca"]
[Date "2022.04.21"]
[Round "3.2"]
[White "Sosa, Tomas"]
[Black "Santos Latasa, Jaime"]
[Result "0-1"]
[ECO "C54"]
[WhiteElo "2547"]
[BlackElo "2640"]
[Annotator "TA"]
[PlyCount "140"]
[EventDate "2022.04.20"]
[EventType "swiss"]
[EventCountry "ESP"]
[SourceTitle "playchess.com"]
[Source "ChessBase"]
[SourceQuality "1"]
[TimeControl "5400+30"]

{[%evp 12,140,12,11,14,13,15,0,4,0,0,0,4,0,8,-27,-25,-39,-41,-58,-21,-43,-22,-34,-25,-50,-47,-35,-31,-45,-39,-39,-45,-64,-30,-47,0,0,0,0,0,0,0,0,0,0,39,38,35,43,35,0,0,0,0,2,4,0,0,0,0,0,0,0,0,-18,-6,-6,-8,-8,-8,-8,-8,-9,0,-4,-4,-10,0,-22,0,-85,-102,-88,-97,-100,-102,-121,-134,-144,-147,-159,-142,-127,-99,-227,-220,-231,-234,-225,-245,-406,-405,-406,-387,-381,-332,-339,-319,-320,-296,-613,-600,-789,-776,-3107,-411,-2926,-2559,-1671,-1120,-29987,-29988,-29988,-29989,-29989,-29989,-29989,-29990,-29989,-29990]} 1. e4 {[%emt 0:00:04]} e5 {[%emt 0:00:06]} 2. Nf3 {[%emt 0:00:11]} Nc6 {[%emt 0:00:04]} 3. Bc4 {[%emt 0:00:06]} Bc5 {[%emt 0:00:05]} 4. d3 {[%emt 0:00:39]} Nf6 {[%emt 0:00:31]} 5. O-O {[%emt 0:00:12]} d6 {[%emt 0:00:05]} 6. c3 {[%emt 0:00:19]} a5 {[%emt 0:00:04]} 7. Re1 {[%emt 0:01:29]} O-O {[%emt 0:00:21]} 8. Bb3 {[%emt 0:00:59]} h6 {[%emt 0:00:36]} 9. Nbd2 {[%emt 0:01:59]} Be6 {[%emt 0:00:21]} 10. Nf1 {[%emt 0:02:57]} Bxb3 {[%emt 0:00:57]} 11. Qxb3 {[%emt 0:01:40]} a4 {[%emt 0:02:05]} 12. Qd1 {[%emt 0:02:08]} (12. Qxb7 $2 Qd7 13. Qb5 Rfb8 $19) 12... d5 {[%emt 0:04:07]} 13. exd5 {[%emt 0:15:01]} Qxd5 {[%emt 0:00:41]} 14. Ne3 {[%emt 0:00:07]} Qd7 {[%emt 0:00:44]} 15. Nc4 {[%emt 0:05:00]} Rfe8 {[%emt 0:09:31]} (15... e4 $5 16. dxe4 Qxd1 17. Rxd1 Nxe4 $15) 16. Be3 {[%emt 0:06:49]} Bxe3 {[%emt 0:05:45]} 17. Rxe3 {[%emt 0:01:32]} Qd5 {[%emt 0:00:47]} 18. Qe2 {[%emt 0:05:20]} Ng4 $1 {[%emt 0:00:47]} 19. Re4 {[%emt 0:00:05]} f5 {[%emt 0:00:51]} 20. Ne3 {[%emt 0:00:21]} Qd7 {[%emt 0:04:58]} 21. Nxf5 {[%emt 0:02:04]} Nf6 $1 {[%emt 0:00:38]} ({Don't play} 21... Qxf5 22. Nh4 Qxf2+ 23. Qxf2 Nxf2 24. Kxf2 $11) 22. N3h4 {[%emt 0:00:56]} Kh7 {[%emt 0:02:19]} 23. Qf3 {[%emt 0:12:37]} Nxe4 {[%emt 0:01:11]} (23... Re6 $15) 24. Qxe4 $11 {[%emt 0:00:18]} Kh8 {[%emt 0:00:11]} 25. Re1 {[%emt 0:01:59]} Rad8 {[%emt 0:05:31]} 26. Re3 {[%emt 0:00:53]} Re6 $1 {[%emt 0:00:05]} 27. Rg3 {[%emt 0:06:15]} g5 {[%emt 0:02:29]} 28. Nxh6 $1 {[%emt 0:32:30]} Qh7 {[%emt 0:09:10]} (28... gxh4 {is a self mate.} 29. Qxh4) (28... Rxh6 $5 29. Ng6+ Kg7 30. Rxg5 Qe8 31. Nf4+ Kh8 32. Ng6+ Kg7 33. Nf4+ Kh8 34. Ng6+ Kg7 $11) 29. N6f5 $1 {[%emt 0:00:00]} gxh4 {[%emt 0:00:06]} 30. Rg4 $1 {[%emt 0:00:00]} Rdd6 {[%emt 0:01:41]} (30... h3 $2 31. Rh4 Qxh4 32. Qxh4+ Kg8 33. Qxh3 $18) 31. Rxh4 {[%emt 0:00:00]} (31. h3 {is interesting.} Rg6 32. Nxd6 Rxg4 33. Qxg4 cxd6 34. Qc8+) 31... Rh6 $1 {[%emt 0:00:07]} 32. Nxh6 {[%emt 0:00:00]} Rxh6 {[%emt 0:00:46]} 33. Qxh7+ {[%emt 0:00:00]} Kxh7 {[%emt 0:00:06]} 34. Rxa4 {[%emt 0:00:00]} Rd6 {[%emt 0:00:05]} 35. Rh4+ {[%emt 0:00:00]} Kg7 {[%emt 0:00:05]} 36. Rh3 {[%emt 0:00:00]} Ne7 {[%emt 0:00:04]} 37. Re3 {[%emt 0:00:00]} Kf6 {[%emt 0:00:31]} 38. Kf1 {[%emt 0:00:00]} Nd5 {[%emt 0:04:09]} 39. Re4 {[%emt 0:00:00]} Rb6 {[%emt 0:00:33]} 40. Re2 {[%emt 0:00:00]} Nf4 {[%emt 0:00:09]} 41. Rd2 {[%emt 0:00:00]} Rd6 {[%emt 0:00:15]} 42. d4 {[%emt 0:00:00]} Kf5 {[%emt 0:09:41]} 43. g3 {[%emt 0:00:00]} Ne6 {[%emt 0:00:32]} 44. d5 {[%emt 0:00:00]} Ng5 {[%emt 0:01:10]} 45. Ke2 {[%emt 0:00:00]} e4 {[%emt 0:00:26]} 46. c4 {[%emt 0:00:00]} (46. Rd4 $11 {remains equal.}) 46... Nf3 $17 {[%emt 0:01:21]} 47. Rd1 {[%emt 0:00:30]} Ke5 {[%emt 0:01:48]} 48. h4 {[%emt 0:00:43]} Rb6 $1 {[%emt 0:01:23]} 49. b3 {[%emt 0:03:17]} Ra6 {[%emt 0:00:25]} 50. Ke3 {[%emt 0:00:17]} ({Wrong is} 50. Ra1 $2 Nd4+ 51. Kf1 Nxb3 $1 {[%mdl 512]}) 50... Nh2 $1 {[%emt 0:02:18]} 51. Ra1 {[%emt 0:03:40]} Rf6 {[%emt 0:01:12]} 52. Ke2 {[%emt 0:00:05]} Nf3 {[%emt 0:03:29]} 53. Rd1 {[%emt 0:02:31]} (53. Kf1 $17) 53... Nd4+ $19 {[%emt 0:00:38]} 54. Ke1 {[%emt 0:00:00]} Ra6 {[%emt 0:00:10]} 55. a4 {[%emt 0:01:05]} Nxb3 {[%emt 0:00:26]} 56. d6 $2 {[%emt 0:01:08]} (56. h5) 56... cxd6 $19 {[%emt 0:02:52]} 57. Rd5+ {[%emt 0:00:04]} Ke6 {[%emt 0:00:06]} 58. Rb5 {[%emt 0:01:02]} Na5 {[%emt 0:01:12]} 59. c5 {[%emt 0:00:28]} d5 $1 {[%emt 0:00:31]} 60. h5 {[%emt 0:00:04]} Ke5 {[%emt 0:00:42]} 61. h6 $2 {[%emt 0:00:37] [#]} (61. g4 Kf4 62. Ke2) 61... Nc4 $1 $19 {[%emt 0:00:29]} 62. h7 {[%emt 0:00:43] [#]} Rh6 $1 {[%emt 0:00:11]} 63. Rxb7 {[%emt 0:00:12]} Rh1+ {[%emt 0:01:07]} 64. Ke2 {[%emt 0:00:01]} d4 {[%emt 0:00:06]} 65. f4+ {[%emt 0:00:33]} Kd5 {[%emt 0:00:21]} 66. g4 {[%emt 0:00:28]} Rh2+ {[%emt 0:00:29]} 67. Kf1 {[%emt 0:01:02]} Nd2+ {[%emt 0:00:08]} 68. Ke1 {[%emt 0:00:02]} Nf3+ {[%emt 0:00:09]} 69. Kd1 {[%emt 0:00:04]} e3 {[%emt 0:00:05]} 70. Re7 {[%emt 0:00:33]} d3 {[%emt 0:00:09]} 0-1

[Event "Menorca Open-A 2022"]
[Site "Menorca"]
[Date "2022.04.21"]
[Round "3.3"]
[White "Nihal Sarin"]
[Black "Iermito, Sebastian"]
[Result "1/2-1/2"]
[ECO "A36"]
[WhiteElo "2656"]
[BlackElo "2525"]
[Annotator "TA"]
[PlyCount "50"]
[EventDate "2022.04.20"]
[EventType "swiss"]
[EventCountry "ESP"]
[SourceTitle "playchess.com"]
[Source "ChessBase"]
[SourceQuality "1"]
[TimeControl "5400+30"]

{[%evp 24,50,-7,-8,-6,-33,-29,-27,-31,-52,-53,-39,0,-8,0,0,0,0,0,0,0,0,0,0,0,0,0,0,0]} 1. c4 {[%emt 0:05:47]} c5 {[%emt 0:00:34]} 2. Nc3 {[%emt 0:00:25]} Nc6 {[%emt 0:00:21]} 3. g3 {[%emt 0:00:04]} g6 {[%emt 0:00:40]} 4. Bg2 {[%emt 0:00:05]} Bg7 {[%emt 0:00:04]} 5. d3 {[%emt 0:00:05]} e6 {[%emt 0:03:27]} 6. e4 {[%emt 0:02:35]} Nge7 {[%emt 0:01:01]} 7. Nge2 {[%emt 0:00:06]} d6 {[%emt 0:01:00]} 8. O-O {[%emt 0:00:35]} O-O {[%emt 0:00:03]} 9. Rb1 {[%emt 0:01:57]} b6 {[%emt 0:04:36]} 10. Be3 {[%emt 0:02:01]} Nd4 {[%emt 0:04:00]} 11. b4 {[%emt 0:20:57]} Bb7 {[%emt 0:02:01]} 12. Qd2 {[%emt 0:02:00]} Qd7 {[%emt 0:12:28]} 13. a3 {[%emt 0:17:51]} f5 {[%emt 0:05:04] A36: Symmetrical English vs ...g6: 4 Bg2 Bg7.} 14. f4 {[%emt 0:09:55]} Nec6 {[%emt 0:05:51]} 15. Bf2 {[%emt 0:01:13]} Rae8 {[%emt 0:04:10] [#] Black has an edge.} 16. Rfe1 $146 {[%emt 0:03:40]} ({Predecessor:} 16. bxc5 dxc5 17. e5 Nxe5 18. Nxd4 cxd4 19. fxe5 dxc3 20. Qxc3 Bxg2 21. Kxg2 f4 22. d4 {0-1 (32) Solak,D (2629)-Djukic,N (2523) Batumi 2018}) 16... Nxe2+ {[%emt 0:06:22]} 17. Nxe2 {[%emt 0:00:37]} Nd4 {[%emt 0:00:11]} (17... e5 $5 {[%cal Rc6d4]}) 18. bxc5 {[%emt 0:08:09] The position is equal.} dxc5 {[%emt 0:02:58]} (18... Nxe2+ {looks sharper.} 19. Qxe2 dxc5 20. e5 Bxg2 21. Kxg2 Rd8) 19. Nxd4 {[%emt 0:00:08]} Bxd4 {[%emt 0:00:27]} 20. exf5 {[%emt 0:00:14]} exf5 {[%emt 0:06:05]} 21. Bxb7 {[%emt 0:00:25]} Bxf2+ {[%emt 0:10:41]} 22. Kxf2 {[%emt 0:00:36]} Qxb7 {[%emt 0:00:21]} 23. Rxe8 {[%emt 0:00:34]} Rxe8 {[%emt 0:00:01]} 24. Re1 {[%emt 0:00:01]} Rxe1 {[%emt 0:01:39]} 25. Qxe1 {[%emt 0:00:10]} Qd7 {[%emt 0:00:17] Weighted Error Value: White=0.05 (flawless) /Black=0.05 (flawless)} 1/2-1/2

[Event "Menorca Open-A 2022"]
[Site "Menorca"]
[Date "2022.04.21"]
[Round "3.4"]
[White "Vasquez Schroeder, Rodrigo"]
[Black "Sargsyan, Shant"]
[Result "1/2-1/2"]
[ECO "C88"]
[WhiteElo "2493"]
[BlackElo "2639"]
[Annotator "TA"]
[PlyCount "74"]
[EventDate "2022.04.20"]
[EventType "swiss"]
[EventCountry "ESP"]
[SourceTitle "playchess.com"]
[Source "ChessBase"]
[SourceQuality "1"]
[TimeControl "5400+30"]

{[%evp 22,74,0,0,24,12,30,11,47,8,22,17,25,10,40,38,33,33,44,51,66,56,70,84,113,104,142,161,190,161,186,176,172,148,239,85,94,13,249,220,192,118,230,232,222,156,175,159,166,69,74,51,26,27,32]} 1. e4 {[%emt 0:00:03]} e5 {[%emt 0:01:26]} 2. Nf3 {[%emt 0:00:16]} Nc6 {[%emt 0:00:09]} 3. Bb5 {[%emt 0:00:54]} a6 {[%emt 0:00:14]} 4. Ba4 {[%emt 0:00:07]} Nf6 {[%emt 0:00:07]} 5. O-O {[%emt 0:00:13]} Be7 {[%emt 0:00:21]} 6. Re1 {[%emt 0:00:12]} b5 {[%emt 0:00:05]} 7. Bb3 {[%emt 0:00:04]} O-O {[%emt 0:00:20]} 8. a4 {[%emt 0:00:53]} Bb7 {[%emt 0:00:48]} 9. d3 {[%emt 0:01:09]} d6 {[%emt 0:00:10]} 10. c3 {[%emt 0:02:13]} Na5 {[%emt 0:00:38]} 11. Bc2 {[%emt 0:00:16]} c5 {[%emt 0:00:10]} 12. Nbd2 {[%emt 0:00:24]} Qb6 {[%emt 0:01:51] C88: Closed Ruy Lopez: Anti-Marshall Systems.} 13. Nf1 {[%emt 0:01:47]} b4 {[%emt 0:01:03] [#]} 14. Ne3 $146 {[%emt 0:03:04]} ({Predecessor:} 14. cxb4 Qxb4 15. Bd2 Qb6 16. Ne3 Nd7 17. Nf5 Rfe8 18. Nxe7+ Rxe7 19. Rb1 Nc6 20. Bg5 Ree8 21. Bb3 Nf8 22. Bd2 Ne6 23. Bc4 {½-½ (23) Cherenkova,K (2226)-Kravchenja,A (2124) Serpukhov 2004}) 14... Bc8 {[%emt 0:23:17] The position is equal.} 15. Nd2 {[%emt 0:09:31]} bxc3 {[%emt 0:03:58]} 16. bxc3 {[%emt 0:00:07][%cal Bb2c3,Bc3d4,Bd4d5][%mdl 32]} Be6 {[%emt 0:00:14]} 17. Ndc4 {[%emt 0:02:50]} Qc7 {[%emt 0:01:09]} 18. Nxa5 {[%emt 0:03:09]} Qxa5 {[%emt 0:00:06]} 19. Bd2 {[%emt 0:00:35][%cal Od3d4]} Rab8 {[%emt 0:05:24]} 20. d4 {[%emt 0:01:16]} cxd4 {[%emt 0:05:29]} 21. cxd4 {[%emt 0:00:08]} Qc7 {[%emt 0:00:10]} 22. d5 {[%emt 0:00:59]} Bd7 {[%emt 0:00:24]} 23. Bd3 {[%emt 0:01:04]} Qa7 {[%emt 0:03:42]} 24. Qe2 {[%emt 0:03:18]} Qd4 {[%emt 0:01:36]} 25. Nc2 {[%emt 0:02:25]} Qc5 {[%emt 0:02:00]} 26. Rec1 {[%emt 0:01:07][%cal Oc2b4]} Rb2 {[%emt 0:05:01]} 27. h3 {[%emt 0:04:18]} Rc8 {[%emt 0:03:19]} (27... Qa7 $16 {was worth a try.} 28. Nb4 Bd8) 28. Bxa6 $2 {[%emt 0:04:43]} Ra8 $16 {[%emt 0:02:04]} (28... Rxc2 $2 29. Bxc8 Qxc8 30. Rxc2 Qxc2 31. a5 $18) 29. Ne3 {[%emt 0:10:29]} ({White should try} 29. Na3 $16 Qd4 30. Nc4 $1) 29... Qa7 {[%emt 0:12:55]} (29... Qd4 $11 {and Black stays safe.} 30. Nc4 Rc2 31. Rxc2 Qxa1+ 32. Rc1 Qxa4) 30. Bd3 $18 {[%emt 0:00:19]} Nh5 {[%emt 0:00:26] Strongly threatening ...Nf4.} 31. g3 {[%emt 0:04:42] Against Nf4} ({Don't do} 31. Qxh5 $6 Rxd2 32. Bf1 f5 $11) (31. Qe1 $18) 31... g6 {[%emt 0:02:01]} (31... Bg5 $16) 32. Kg2 {[%emt 0:01:59]} Bg5 {[%emt 0:01:50]} 33. Rc2 {[%emt 0:02:40]} Rb3 {[%emt 0:01:12] Hoping for ...Qd4.} 34. Bc4 {[%emt 0:03:12]} Rbb8 {[%emt 0:00:47] [#]} 35. a5 {[%emt 0:01:10]} (35. Rca2 $1 $18) 35... Qd4 $14 {[%emt 0:00:54][%csl LRa1,LRe4]} 36. Rac1 {[%emt 0:10:02] aiming for Bd3.} Qxe4+ {[%emt 0:00:25]} 37. Kh2 $1 {[%emt 0:00:13]} Nf6 {[%emt 0:09:32] Weighted Error Value: White=0.27 (precise) /Black=0.33} 1/2-1/2